[Event "Late-Titled-Tuesday-Blitz-February-20-2024"]
[Site "Chess.com"]
[Date "2024.02.20"]
[Round "1"]
[White "slavenok"]
[Black "Cristi_Coca"]
[Result "1-0"]
[WhiteElo "2740"]
[BlackElo "2385"]
[TimeControl "180+1"]
[EndTime "14:04:54 PST"]
[Termination "slavenok won by resignation"]

1. e4 {[%clk 0:02:58.1]} 1... c5 {[%clk 0:02:59.8]} 2. d4 {[%clk 0:02:58.1]}
2... cxd4 {[%clk 0:02:59.4]} 3. Nf3 {[%clk 0:02:58.6]} 3... e6 {[%clk 0:02:59]}
4. Bc4 {[%clk 0:02:59]} 4... a6 {[%clk 0:02:58.8]} 5. O-O {[%clk 0:02:59.5]}
5... b5 {[%clk 0:02:58.4]} 6. Bb3 {[%clk 0:03:00.1]} 6... Bb7 {[%clk 0:02:58.6]}
7. Qe2 {[%clk 0:03:00.7]} 7... Bc5 {[%clk 0:02:55.4]} 8. Rd1 {[%clk 0:03:00.6]}
8... Nc6 {[%clk 0:02:55.1]} 9. c3 {[%clk 0:03:00.8]} 9... dxc3 {[%clk
0:02:52.9]} 10. Nxc3 {[%clk 0:03:01.7]} 10... Nge7 {[%clk 0:02:51.4]} 11. Bg5
{[%clk 0:03:00.2]} 11... Qb6 {[%clk 0:02:48.5]} 12. a4 {[%clk 0:02:58.1]} 12...
b4 {[%clk 0:02:32.2]} 13. a5 {[%clk 0:02:57]} 13... Qa7 {[%clk 0:02:29.3]} 14.
Na4 {[%clk 0:02:53.9]} 14... Nd4 {[%clk 0:02:07.6]} 15. Nxd4 {[%clk 0:02:43.4]}
15... Bxd4 {[%clk 0:02:08.5]} 16. Qd2 {[%clk 0:02:43.6]} 16... e5 {[%clk
0:02:02]} 17. Bxe7 {[%clk 0:02:37.4]} 17... Kxe7 {[%clk 0:02:01.6]} 18. Qxb4+
{[%clk 0:02:38.1]} 18... d6 {[%clk 0:01:54.1]} 19. Nb6 {[%clk 0:02:37.9]} 19...
Rad8 {[%clk 0:01:44]} 20. Rac1 {[%clk 0:02:31.1]} 20... Bxe4 {[%clk 0:01:39.3]}
21. Rxd4 {[%clk 0:02:18.1]} 21... exd4 {[%clk 0:01:38.2]} 22. Qxd4 {[%clk
0:02:18.7]} 22... Qb7 {[%clk 0:01:14.2]} 23. Qxg7 {[%clk 0:02:17.7]} 23... Rdf8
{[%clk 0:00:47.8]} 24. Qg5+ {[%clk 0:02:14.7]} 24... f6 {[%clk 0:00:45.8]} 25.
Qg7+ {[%clk 0:02:13.6]} 25... Kd8 {[%clk 0:00:43.7]} 26. Rc8+ {[%clk 0:02:03.2]}
26... Qxc8 {[%clk 0:00:43.8]} 27. Nxc8 {[%clk 0:02:04.1]} 27... Kxc8 {[%clk
0:00:41.5]} 28. Qe7 {[%clk 0:02:01.3]} 28... Bb7 {[%clk 0:00:31.7]} 29. Qxd6
{[%clk 0:01:56.9]} 29... Rd8 {[%clk 0:00:30.5]} 30. Be6+ {[%clk 0:01:52.1]} 1-0

[Event "Late-Titled-Tuesday-Blitz-February-20-2024"]
[Site "Chess.com"]
[Date "2024.02.20"]
[Round "1"]
[White "tptagain"]
[Black "colegiodemadrid"]
[Result "1-0"]
[WhiteElo "2956"]
[BlackElo "2485"]
[TimeControl "180+1"]
[EndTime "14:05:09 PST"]
[Termination "tptagain won by resignation"]

1. d4 {[%clk 0:03:00.9]} 1... Nf6 {[%clk 0:02:58.9]} 2. Nf3 {[%clk 0:03:01.1]}
2... g6 {[%clk 0:02:55.6]} 3. Bg5 {[%clk 0:03:00.9]} 3... Bg7 {[%clk 0:02:55]}
4. Nbd2 {[%clk 0:03:01.4]} 4... d5 {[%clk 0:02:53.5]} 5. e3 {[%clk 0:03:01.3]}
5... O-O {[%clk 0:02:52.4]} 6. Be2 {[%clk 0:03:01.5]} 6... Nbd7 {[%clk
0:02:45.6]} 7. h3 {[%clk 0:02:58.5]} 7... Re8 {[%clk 0:02:41.9]} 8. Bf4 {[%clk
0:02:57.6]} 8... c5 {[%clk 0:02:37.2]} 9. O-O {[%clk 0:02:53.4]} 9... Qb6 {[%clk
0:02:28.7]} 10. Qc1 {[%clk 0:02:44.8]} 10... Nf8 {[%clk 0:02:13.4]} 11. c3
{[%clk 0:02:42.5]} 11... cxd4 {[%clk 0:02:09.7]} 12. exd4 {[%clk 0:02:41.8]}
12... Bf5 {[%clk 0:02:01.2]} 13. Re1 {[%clk 0:02:35.8]} 13... Rac8 {[%clk
0:02:00]} 14. a4 {[%clk 0:02:34.4]} 14... Ne4 {[%clk 0:01:57.6]} 15. a5 {[%clk
0:02:33.7]} 15... Qc6 {[%clk 0:01:34]} 16. Ne5 {[%clk 0:02:29.3]} 16... Qf6
{[%clk 0:01:24.5]} 17. Nxe4 {[%clk 0:02:19.4]} 17... Bxe4 {[%clk 0:01:22.9]} 18.
a6 {[%clk 0:02:12.6]} 18... b6 {[%clk 0:01:20.2]} 19. Bb5 {[%clk 0:02:12.6]}
19... Red8 {[%clk 0:01:18.1]} 20. Qe3 {[%clk 0:01:44.7]} 20... Ne6 {[%clk
0:01:10.5]} 21. Bg3 {[%clk 0:01:44.5]} 21... Qg5 {[%clk 0:01:05.2]} 22. Qxg5
{[%clk 0:01:32.5]} 22... Nxg5 {[%clk 0:01:06.1]} 23. Nc6 {[%clk 0:01:23.2]}
23... Rd7 {[%clk 0:01:01.9]} 24. f3 {[%clk 0:01:22.6]} 24... Bf5 {[%clk
0:01:01]} 25. Nxe7+ {[%clk 0:01:21]} 25... Rxe7 {[%clk 0:00:59.5]} 26. Rxe7
{[%clk 0:01:21.9]} 1-0

[Event "Late-Titled-Tuesday-Blitz-February-20-2024"]
[Site "Chess.com"]
[Date "2024.02.20"]
[Round "1"]
[White "mbojan"]
[Black "picturesquecheck"]
[Result "1-0"]
[WhiteElo "2870"]
[BlackElo "2453"]
[TimeControl "180+1"]
[EndTime "14:05:13 PST"]
[Termination "mbojan won by resignation"]

1. e4 {[%clk 0:03:00.9]} 1... c5 {[%clk 0:02:55.8]} 2. Nf3 {[%clk 0:03:01]} 2...
d6 {[%clk 0:02:55.9]} 3. d4 {[%clk 0:03:00.9]} 3... cxd4 {[%clk 0:02:56.8]} 4.
Nxd4 {[%clk 0:03:01.4]} 4... Nf6 {[%clk 0:02:57.4]} 5. Nc3 {[%clk 0:03:02]} 5...
Nc6 {[%clk 0:02:54.8]} 6. Nxc6 {[%clk 0:03:01.7]} 6... bxc6 {[%clk 0:02:54.6]}
7. Bd3 {[%clk 0:03:02.6]} 7... e5 {[%clk 0:02:54.3]} 8. O-O {[%clk 0:03:02.9]}
8... Be7 {[%clk 0:02:54.8]} 9. Qe2 {[%clk 0:03:03.1]} 9... O-O {[%clk 0:02:55]}
10. b3 {[%clk 0:03:03.2]} 10... Re8 {[%clk 0:02:54.4]} 11. Rd1 {[%clk
0:02:59.2]} 11... Bf8 {[%clk 0:02:52]} 12. Na4 {[%clk 0:02:59.4]} 12... d5
{[%clk 0:02:45]} 13. c4 {[%clk 0:02:57]} 13... d4 {[%clk 0:02:45]} 14. c5 {[%clk
0:02:54.6]} 14... Nd7 {[%clk 0:02:33.1]} 15. Ba3 {[%clk 0:02:46.1]} 15... g6
{[%clk 0:02:19.3]} 16. Rac1 {[%clk 0:02:45.5]} 16... Bh6 {[%clk 0:02:17.6]} 17.
Rc2 {[%clk 0:02:45.7]} 17... Nf6 {[%clk 0:02:16.6]} 18. Bc1 {[%clk 0:02:37.8]}
18... Bg4 {[%clk 0:02:07]} 19. f3 {[%clk 0:02:36.4]} 19... Bxc1 {[%clk
0:02:07.2]} 20. Rcxc1 {[%clk 0:02:35.9]} 20... Be6 {[%clk 0:02:04.9]} 21. Nb2
{[%clk 0:02:35.5]} 21... Nh5 {[%clk 0:02:04.9]} 22. g3 {[%clk 0:02:35.3]} 22...
Qe7 {[%clk 0:01:54]} 23. Bc4 {[%clk 0:02:33.8]} 23... Bd7 {[%clk 0:01:51.9]} 24.
Nd3 {[%clk 0:02:33.9]} 24... a5 {[%clk 0:01:48.2]} 25. Rf1 {[%clk 0:02:34.1]}
25... a4 {[%clk 0:01:36.2]} 26. b4 {[%clk 0:02:33.7]} 26... Reb8 {[%clk
0:01:34.5]} 27. a3 {[%clk 0:02:33.7]} 27... Kg7 {[%clk 0:01:17.1]} 28. Kh1
{[%clk 0:02:31.2]} 28... Re8 {[%clk 0:01:16.3]} 29. Rce1 {[%clk 0:02:30.5]}
29... Be6 {[%clk 0:01:07.5]} 30. Nxe5 {[%clk 0:02:20.5]} 30... Bh3 {[%clk
0:00:53.8]} 31. Nxf7 {[%clk 0:02:20.9]} 31... Bxf1 {[%clk 0:00:51.5]} 32. Rxf1
{[%clk 0:02:21.8]} 32... Rf8 {[%clk 0:00:46.1]} 33. Nd6 {[%clk 0:02:21.4]} 33...
Rad8 {[%clk 0:00:44]} 34. e5 {[%clk 0:02:20]} 34... Qg5 {[%clk 0:00:36.7]} 35.
f4 {[%clk 0:02:20.4]} 35... Qh6 {[%clk 0:00:33.3]} 36. Kg2 {[%clk 0:02:20.8]}
36... g5 {[%clk 0:00:25.4]} 37. f5 {[%clk 0:02:20.5]} 37... Kh8 {[%clk
0:00:24.1]} 38. f6 {[%clk 0:02:19.5]} 38... Qg6 {[%clk 0:00:20]} 39. Qd3 {[%clk
0:02:16.6]} 1-0

[Event "Late-Titled-Tuesday-Blitz-February-20-2024"]
[Site "Chess.com"]
[Date "2024.02.20"]
[Round "1"]
[White "Iuckyducky"]
[Black "YurasovMat-2012"]
[Result "0-1"]
[WhiteElo "2295"]
[BlackElo "2609"]
[TimeControl "180+1"]
[EndTime "14:05:13 PST"]
[Termination "YurasovMat-2012 won by resignation"]

1. e4 {[%clk 0:01:38.4]} 1... e5 {[%clk 0:02:56.6]} 2. Nf3 {[%clk 0:01:38.5]}
2... Nf6 {[%clk 0:02:56.2]} 3. Nxe5 {[%clk 0:01:37.5]} 3... d6 {[%clk
0:02:55.8]} 4. Nc4 {[%clk 0:01:35.2]} 4... Nxe4 {[%clk 0:02:55.4]} 5. Qe2 {[%clk
0:01:35.8]} 5... Qe7 {[%clk 0:02:53.9]} 6. Ne3 {[%clk 0:01:36.4]} 6... Nf6
{[%clk 0:02:51.7]} 7. d4 {[%clk 0:01:23.9]} 7... g6 {[%clk 0:02:50.3]} 8. Nc3
{[%clk 0:01:11.6]} 8... c6 {[%clk 0:02:49.4]} 9. Bd2 {[%clk 0:01:05.8]} 9... Bg7
{[%clk 0:02:46.7]} 10. O-O-O {[%clk 0:01:06.4]} 10... O-O {[%clk 0:02:46]} 11.
f3 {[%clk 0:00:59.7]} 11... d5 {[%clk 0:02:45.1]} 12. h4 {[%clk 0:00:58.7]}
12... Re8 {[%clk 0:02:37.8]} 13. g4 {[%clk 0:00:55.8]} 13... h5 {[%clk
0:02:30.4]} 14. Bh3 {[%clk 0:00:29.1]} 14... hxg4 {[%clk 0:02:26.7]} 15. fxg4
{[%clk 0:00:29.2]} 15... Ne4 {[%clk 0:02:26.2]} 16. Nxe4 {[%clk 0:00:19.3]}
16... Qxe4 {[%clk 0:02:27.1]} 17. Rhg1 {[%clk 0:00:19.4]} 17... Qxd4 {[%clk
0:02:25.6]} 18. c3 {[%clk 0:00:10.2]} 18... Qa4 {[%clk 0:02:25]} 19. Kb1 {[%clk
0:00:08.1]} 19... Be6 {[%clk 0:02:23.7]} 20. Qd3 {[%clk 0:00:07]} 20... d4
{[%clk 0:02:22.5]} 21. b3 {[%clk 0:00:06.5]} 21... Bxb3 {[%clk 0:02:20.5]} 22.
axb3 {[%clk 0:00:04.5]} 22... Qxb3+ {[%clk 0:02:21.4]} 23. Kc1 {[%clk
0:00:04.9]} 23... dxe3 {[%clk 0:02:21.6]} 24. Bxe3 {[%clk 0:00:02.9]} 24... Bxc3
{[%clk 0:02:22.1]} 25. Rg2 {[%clk 0:00:02.1]} 25... Na6 {[%clk 0:02:17.6]} 26.
h5 {[%clk 0:00:02.6]} 26... Nb4 {[%clk 0:02:16.6]} 27. Qb1 {[%clk 0:00:03.1]}
27... Qa3+ {[%clk 0:02:15.9]} 28. Rb2 {[%clk 0:00:01.5]} 28... Rxe3 {[%clk
0:02:15.7]} 29. hxg6 {[%clk 0:00:01.2]} 29... Bxb2+ {[%clk 0:02:15.8]} 30. Qxb2
{[%clk 0:00:01.7]} 30... Qxb2+ {[%clk 0:02:16.1]} 31. Kxb2 {[%clk 0:00:02.6]}
31... Rxh3 {[%clk 0:02:16.1]} 32. gxf7+ {[%clk 0:00:03.1]} 32... Kxf7 {[%clk
0:02:15.4]} 33. Rd7+ {[%clk 0:00:04]} 33... Ke6 {[%clk 0:02:15.9]} 34. Rxb7
{[%clk 0:00:04.1]} 34... a5 {[%clk 0:02:16.4]} 35. g5 {[%clk 0:00:03.4]} 35...
Rf8 {[%clk 0:02:16.7]} 36. g6 {[%clk 0:00:03.6]} 36... Rf2+ {[%clk 0:02:15.6]}
0-1

[Event "Late-Titled-Tuesday-Blitz-February-20-2024"]
[Site "Chess.com"]
[Date "2024.02.20"]
[Round "1"]
[White "krucki03"]
[Black "icaughtacrab"]
[Result "1-0"]
[WhiteElo "2534"]
[BlackElo "2053"]
[TimeControl "180+1"]
[EndTime "14:05:13 PST"]
[Termination "krucki03 won by resignation"]

1. b3 {[%clk 0:02:59]} 1... e5 {[%clk 0:02:58.8]} 2. Bb2 {[%clk 0:02:59.2]} 2...
Nc6 {[%clk 0:02:59.5]} 3. g3 {[%clk 0:02:59]} 3... Nf6 {[%clk 0:02:59]} 4. Bg2
{[%clk 0:02:59.5]} 4... d5 {[%clk 0:02:58.8]} 5. e3 {[%clk 0:02:59.6]} 5... Bd6
{[%clk 0:02:59.1]} 6. Ne2 {[%clk 0:02:59.9]} 6... O-O {[%clk 0:02:59.7]} 7. O-O
{[%clk 0:03:00.2]} 7... Bf5 {[%clk 0:02:57.1]} 8. d3 {[%clk 0:03:00.5]} 8... Qd7
{[%clk 0:02:57.4]} 9. Nd2 {[%clk 0:02:58.3]} 9... Rad8 {[%clk 0:02:56.4]} 10. a3
{[%clk 0:02:57.7]} 10... Rfe8 {[%clk 0:02:56.3]} 11. b4 {[%clk 0:02:58.1]} 11...
Bh3 {[%clk 0:02:55.8]} 12. Nb3 {[%clk 0:02:57.8]} 12... Bxg2 {[%clk 0:02:55.4]}
13. Kxg2 {[%clk 0:02:58.7]} 13... b6 {[%clk 0:02:53.4]} 14. c4 {[%clk
0:02:57.7]} 14... Bf8 {[%clk 0:02:49.7]} 15. Rc1 {[%clk 0:02:55.8]} 15... h6
{[%clk 0:02:35.5]} 16. Nc3 {[%clk 0:02:48.7]} 16... dxc4 {[%clk 0:02:35.4]} 17.
dxc4 {[%clk 0:02:49.6]} 17... Qxd1 {[%clk 0:02:34.7]} 18. Rfxd1 {[%clk
0:02:50.5]} 18... Ne7 {[%clk 0:02:32.4]} 19. Nb5 {[%clk 0:02:48]} 19... Rc8
{[%clk 0:02:08]} 20. Nxa7 {[%clk 0:02:46.8]} 20... Ra8 {[%clk 0:02:06.3]} 21.
Nb5 {[%clk 0:02:47]} 21... Rac8 {[%clk 0:02:05.7]} 22. Bxe5 {[%clk 0:02:43.9]}
22... Ng6 {[%clk 0:01:44.6]} 23. Bxf6 {[%clk 0:02:41.8]} 23... gxf6 {[%clk
0:01:44.5]} 24. N3d4 {[%clk 0:02:38.7]} 24... Kg7 {[%clk 0:01:44.6]} 25. Nf5+
{[%clk 0:02:38.7]} 25... Kh7 {[%clk 0:01:44.5]} 26. Rd7 {[%clk 0:02:37.9]} 26...
Ne7 {[%clk 0:01:32.3]} 27. Nxe7 {[%clk 0:02:34.6]} 27... Rxe7 {[%clk 0:01:33.2]}
28. Rxe7 {[%clk 0:02:34.6]} 28... Bxe7 {[%clk 0:01:34.1]} 29. Rd1 {[%clk
0:02:34.6]} 29... c6 {[%clk 0:01:32.5]} 30. Nd4 {[%clk 0:02:32.3]} 30... Rc7
{[%clk 0:01:31.7]} 31. Nf5 {[%clk 0:02:32.5]} 31... Bf8 {[%clk 0:01:31.2]} 32.
Rd8 {[%clk 0:02:31.5]} 32... Bg7 {[%clk 0:01:30.9]} 33. Nxg7 {[%clk 0:02:16.8]}
33... Kxg7 {[%clk 0:01:31.8]} 34. e4 {[%clk 0:02:16.1]} 34... Ra7 {[%clk
0:01:31.5]} 35. Rd3 {[%clk 0:02:15.8]} 35... Ra4 {[%clk 0:01:26.7]} 36. Kf3
{[%clk 0:02:08.2]} 36... c5 {[%clk 0:01:26.3]} 37. Rb3 {[%clk 0:02:07.3]} 37...
f5 {[%clk 0:01:23.7]} 38. exf5 {[%clk 0:02:07.4]} 38... Kf6 {[%clk 0:01:23.8]}
39. g4 {[%clk 0:02:07.1]} 39... Ke5 {[%clk 0:01:22.8]} 40. h4 {[%clk 0:02:07]}
40... Kd4 {[%clk 0:01:22.6]} 41. g5 {[%clk 0:02:04.1]} 41... hxg5 {[%clk
0:01:21.9]} 42. hxg5 {[%clk 0:02:05]} 42... Kxc4 {[%clk 0:01:22.5]} 43. Re3
{[%clk 0:02:04.9]} 43... cxb4 {[%clk 0:01:20.5]} 44. axb4 {[%clk 0:02:05.8]}
44... Ra8 {[%clk 0:01:14.3]} 45. Re4+ {[%clk 0:02:05.8]} 45... Kd5 {[%clk
0:01:12.2]} 46. Kf4 {[%clk 0:02:06.2]} 46... Rg8 {[%clk 0:01:11.7]} 47. Re7
{[%clk 0:02:02.1]} 47... Rg7 {[%clk 0:01:04.4]} 48. g6 {[%clk 0:02:00.7]} 48...
Kd6 {[%clk 0:01:00.6]} 49. Rxf7 {[%clk 0:02:00.3]} 49... Rxf7 {[%clk 0:01:00.9]}
50. gxf7 {[%clk 0:02:01.2]} 50... Ke7 {[%clk 0:01:01.7]} 51. Ke5 {[%clk
0:02:00]} 51... Kxf7 {[%clk 0:01:02.6]} 52. f6 {[%clk 0:02:00.5]} 52... Kf8
{[%clk 0:01:02.5]} 53. Ke6 {[%clk 0:02:00.4]} 1-0

[Event "Late-Titled-Tuesday-Blitz-February-20-2024"]
[Site "Chess.com"]
[Date "2024.02.20"]
[Round "1"]
[White "jup1978"]
[Black "jefferyx"]
[Result "0-1"]
[WhiteElo "2504"]
[BlackElo "3021"]
[TimeControl "180+1"]
[EndTime "14:05:18 PST"]
[Termination "jefferyx won by resignation"]

1. e4 {[%clk 0:03:00.9]} 1... c5 {[%clk 0:02:59.2]} 2. Nf3 {[%clk 0:03:01.1]}
2... d6 {[%clk 0:02:59.8]} 3. d4 {[%clk 0:03:00.3]} 3... cxd4 {[%clk 0:03:00.7]}
4. Nxd4 {[%clk 0:03:00.6]} 4... Nf6 {[%clk 0:03:00.5]} 5. Nc3 {[%clk 0:03:01]}
5... a6 {[%clk 0:03:01]} 6. Nb3 {[%clk 0:03:00.7]} 6... g6 {[%clk 0:02:53.4]} 7.
Be2 {[%clk 0:02:57.6]} 7... Bg7 {[%clk 0:02:53.7]} 8. Be3 {[%clk 0:02:57.8]}
8... O-O {[%clk 0:02:50.2]} 9. f3 {[%clk 0:02:58.2]} 9... b5 {[%clk 0:02:48.6]}
10. Qd2 {[%clk 0:02:58.2]} 10... Nbd7 {[%clk 0:02:36.4]} 11. O-O-O {[%clk
0:02:56.1]} 11... b4 {[%clk 0:02:36.8]} 12. Nd5 {[%clk 0:02:55.8]} 12... Nxd5
{[%clk 0:02:36.9]} 13. Qxd5 {[%clk 0:02:54.6]} 13... Rb8 {[%clk 0:02:29.4]} 14.
Bd4 {[%clk 0:02:33.5]} 14... Bb7 {[%clk 0:02:27.7]} 15. Qc4 {[%clk 0:02:30.3]}
15... a5 {[%clk 0:02:22.4]} 16. Bxg7 {[%clk 0:02:29]} 16... Kxg7 {[%clk
0:02:23.3]} 17. Kb1 {[%clk 0:02:20.3]} 17... Kg8 {[%clk 0:02:14.4]} 18. h4
{[%clk 0:02:19.8]} 18... Qb6 {[%clk 0:02:12.7]} 19. Qd4 {[%clk 0:02:16.4]} 19...
a4 {[%clk 0:02:12.1]} 20. Qxb6 {[%clk 0:02:14.5]} 20... Nxb6 {[%clk 0:02:13]}
21. Na5 {[%clk 0:02:12.1]} 21... Ba8 {[%clk 0:02:06.1]} 22. Nc4 {[%clk
0:02:11.8]} 22... Rfc8 {[%clk 0:02:05]} 23. Nxb6 {[%clk 0:02:10.8]} 23... Rxb6
{[%clk 0:02:05.9]} 24. Rd4 {[%clk 0:02:05.5]} 24... Rc5 {[%clk 0:02:05.5]} 25.
Rhd1 {[%clk 0:02:03.5]} 25... Kg7 {[%clk 0:02:05.7]} 26. b3 {[%clk 0:01:53.5]}
26... a3 {[%clk 0:02:03.3]} 27. Rc4 {[%clk 0:01:46.6]} 27... Rxc4 {[%clk
0:02:02.9]} 28. Bxc4 {[%clk 0:01:47.3]} 28... Kf6 {[%clk 0:02:03]} 29. Bd5
{[%clk 0:01:46.6]} 29... Bxd5 {[%clk 0:02:01.6]} 30. Rxd5 {[%clk 0:01:47.5]}
30... e6 {[%clk 0:02:01.6]} 31. Rd4 {[%clk 0:01:46.3]} 31... Ke5 {[%clk
0:02:01.8]} 32. c3 {[%clk 0:01:39.2]} 32... bxc3 {[%clk 0:02:01.8]} 33. Rc4
{[%clk 0:01:39.3]} 33... Kf4 {[%clk 0:01:57.8]} 34. Rxc3 {[%clk 0:01:37.9]}
34... Kg3 {[%clk 0:01:58.4]} 35. Rc7 {[%clk 0:01:35.2]} 35... f5 {[%clk
0:01:56.1]} 36. exf5 {[%clk 0:01:34.6]} 36... gxf5 {[%clk 0:01:54.5]} 37. Rxh7
{[%clk 0:01:32.1]} 37... Kxg2 {[%clk 0:01:54.9]} 38. Re7 {[%clk 0:01:26.9]}
38... e5 {[%clk 0:01:55]} 39. h5 {[%clk 0:01:26.7]} 39... Kxf3 {[%clk
0:01:55.2]} 40. h6 {[%clk 0:01:27]} 40... Rb8 {[%clk 0:01:34.1]} 41. h7 {[%clk
0:01:27]} 41... f4 {[%clk 0:01:32.6]} 42. Kc2 {[%clk 0:01:27]} 42... Ke2 {[%clk
0:01:31.6]} 43. Rg7 {[%clk 0:01:23]} 43... Rc8+ {[%clk 0:01:31.2]} 44. Kb1
{[%clk 0:01:22.3]} 44... Rh8 {[%clk 0:01:31.9]} 45. Rg2+ {[%clk 0:01:18.2]}
45... Ke3 {[%clk 0:01:30.7]} 0-1

[Event "Late-Titled-Tuesday-Blitz-February-20-2024"]
[Site "Chess.com"]
[Date "2024.02.20"]
[Round "1"]
[White "ljm509"]
[Black "sina101"]
[Result "0-1"]
[WhiteElo "2048"]
[BlackElo "2534"]
[TimeControl "180+1"]
[EndTime "14:05:20 PST"]
[Termination "sina101 won by resignation"]

1. e4 {[%clk 0:03:00.2]} 1... g6 {[%clk 0:02:49.3]} 2. d4 {[%clk 0:02:59.6]}
2... Bg7 {[%clk 0:02:49.6]} 3. f3 {[%clk 0:02:58.3]} 3... d6 {[%clk 0:02:50.1]}
4. Be3 {[%clk 0:02:58.1]} 4... Nf6 {[%clk 0:02:49.7]} 5. Qd2 {[%clk 0:02:57.6]}
5... O-O {[%clk 0:02:45.1]} 6. Bh6 {[%clk 0:02:56.3]} 6... e5 {[%clk 0:02:40.6]}
7. d5 {[%clk 0:02:56.2]} 7... c6 {[%clk 0:02:39.5]} 8. c4 {[%clk 0:02:53.7]}
8... cxd5 {[%clk 0:02:16.7]} 9. cxd5 {[%clk 0:02:52.8]} 9... Nxe4 {[%clk
0:02:11]} 10. fxe4 {[%clk 0:02:37.5]} 10... Qh4+ {[%clk 0:02:07]} 11. Qf2 {[%clk
0:01:51.8]} 11... Qxf2+ {[%clk 0:01:51.4]} 12. Kxf2 {[%clk 0:01:51.4]} 12...
Bxh6 {[%clk 0:01:52.3]} 13. Nc3 {[%clk 0:01:51.1]} 13... a6 {[%clk 0:01:45.1]}
14. Nf3 {[%clk 0:01:44.7]} 14... Nd7 {[%clk 0:01:41.2]} 15. b4 {[%clk
0:01:25.1]} 15... f5 {[%clk 0:01:36.7]} 16. Bd3 {[%clk 0:01:22.5]} 16... Nf6
{[%clk 0:01:26.4]} 17. Ke2 {[%clk 0:01:18.7]} 17... Bd7 {[%clk 0:01:10.4]} 18.
exf5 {[%clk 0:00:48.4]} 18... gxf5 {[%clk 0:01:08.7]} 19. Nh4 {[%clk 0:00:48]}
19... e4 {[%clk 0:01:01.1]} 0-1

[Event "Late-Titled-Tuesday-Blitz-February-20-2024"]
[Site "Chess.com"]
[Date "2024.02.20"]
[Round "1"]
[White "Chessdude1987"]
[Black "djano"]
[Result "0-1"]
[WhiteElo "2356"]
[BlackElo "2667"]
[TimeControl "180+1"]
[EndTime "14:05:21 PST"]
[Termination "djano won by resignation"]

1. e4 {[%clk 0:03:00.9]} 1... c5 {[%clk 0:02:58.3]} 2. Nf3 {[%clk 0:03:00.7]}
2... Nc6 {[%clk 0:02:56.6]} 3. Bb5 {[%clk 0:03:00.8]} 3... e5 {[%clk 0:02:56.9]}
4. O-O {[%clk 0:02:56.5]} 4... Nge7 {[%clk 0:02:56.8]} 5. Re1 {[%clk 0:02:54.9]}
5... g6 {[%clk 0:02:56.4]} 6. c3 {[%clk 0:02:54.6]} 6... Bg7 {[%clk 0:02:56.7]}
7. d4 {[%clk 0:02:47.8]} 7... cxd4 {[%clk 0:02:57.6]} 8. cxd4 {[%clk 0:02:47]}
8... exd4 {[%clk 0:02:58.5]} 9. Nbd2 {[%clk 0:02:45.3]} 9... O-O {[%clk
0:02:57.2]} 10. Nb3 {[%clk 0:02:40]} 10... a6 {[%clk 0:02:55.4]} 11. Bf1 {[%clk
0:02:38.7]} 11... d5 {[%clk 0:02:55.8]} 12. exd5 {[%clk 0:02:08]} 12... Qxd5
{[%clk 0:02:56.7]} 13. h3 {[%clk 0:02:06.8]} 13... Bf5 {[%clk 0:02:49.2]} 14.
Bg5 {[%clk 0:02:03.8]} 14... f6 {[%clk 0:02:27.2]} 15. Rc1 {[%clk 0:01:59.9]}
15... Kh8 {[%clk 0:02:21.5]} 16. Bf4 {[%clk 0:01:47.1]} 16... g5 {[%clk
0:02:17.8]} 17. Bg3 {[%clk 0:01:43.6]} 17... d3 {[%clk 0:02:17.5]} 18. Rc5
{[%clk 0:01:37.1]} 18... Qd7 {[%clk 0:02:12.3]} 19. Re3 {[%clk 0:01:28.5]} 19...
Rad8 {[%clk 0:02:11.4]} 20. Nfd2 {[%clk 0:01:16.9]} 20... Bg6 {[%clk 0:02:08.3]}
21. Rc3 {[%clk 0:01:13.5]} 21... Nd5 {[%clk 0:01:54.7]} 22. Rcxd3 {[%clk
0:01:13.1]} 22... Nxe3 {[%clk 0:01:48.5]} 23. Rxd7 {[%clk 0:01:11.4]} 23... Nxd1
{[%clk 0:01:48.3]} 24. Rxb7 {[%clk 0:01:08.1]} 24... f5 {[%clk 0:01:38.9]} 25.
Rc7 {[%clk 0:01:02.8]} 25... Nd4 {[%clk 0:01:33.2]} 26. Nxd4 {[%clk 0:01:00.7]}
26... Bxd4 {[%clk 0:01:32.7]} 27. Nb3 {[%clk 0:00:49.4]} 27... f4 {[%clk
0:01:30.4]} 28. Nxd4 {[%clk 0:00:45.1]} 28... Rxd4 {[%clk 0:01:26.2]} 29. Bh2
{[%clk 0:00:46]} 29... Nxb2 {[%clk 0:01:22.8]} 30. h4 {[%clk 0:00:46]} 30... Rd1
{[%clk 0:01:15.3]} 31. Rc3 {[%clk 0:00:43.6]} 31... Bd3 {[%clk 0:01:14.8]} 0-1

[Event "Late-Titled-Tuesday-Blitz-February-20-2024"]
[Site "Chess.com"]
[Date "2024.02.20"]
[Round "1"]
[White "sergoy"]
[Black "ajeale2"]
[Result "1-0"]
[WhiteElo "2999"]
[BlackElo "2498"]
[TimeControl "180+1"]
[EndTime "14:05:27 PST"]
[Termination "sergoy won on time"]

1. d4 {[%clk 0:03:00.9]} 1... d5 {[%clk 0:02:51]} 2. c4 {[%clk 0:03:01.3]} 2...
e6 {[%clk 0:02:43.3]} 3. Nf3 {[%clk 0:03:01.7]} 3... Nf6 {[%clk 0:02:42.6]} 4.
Nc3 {[%clk 0:03:02.2]} 4... a6 {[%clk 0:02:36.4]} 5. cxd5 {[%clk 0:03:01.5]}
5... exd5 {[%clk 0:02:36.1]} 6. Bg5 {[%clk 0:03:02.2]} 6... Be6 {[%clk
0:02:36.1]} 7. Bxf6 {[%clk 0:03:00.7]} 7... Qxf6 {[%clk 0:02:35.5]} 8. Qb3
{[%clk 0:03:01.6]} 8... b6 {[%clk 0:01:41.2]} 9. g3 {[%clk 0:02:52.9]} 9... Qd8
{[%clk 0:01:11.7]} 10. Bg2 {[%clk 0:02:51.2]} 10... c6 {[%clk 0:00:32]} 11. Qc2
{[%clk 0:02:48.5]} 11... Be7 {[%clk 0:00:28.4]} 12. O-O {[%clk 0:02:46.1]} 12...
O-O {[%clk 0:00:28.6]} 13. e4 {[%clk 0:02:45.9]} 13... Bf6 {[%clk 0:00:25.4]}
14. Rad1 {[%clk 0:02:42.7]} 14... Nd7 {[%clk 0:00:21.4]} 15. h4 {[%clk
0:02:36.7]} 15... Rc8 {[%clk 0:00:20.4]} 16. Rfe1 {[%clk 0:02:33.9]} 16... Re8
{[%clk 0:00:19.6]} 17. a3 {[%clk 0:02:28.2]} 17... g6 {[%clk 0:00:19.4]} 18. Qd2
{[%clk 0:02:27]} 18... Bg7 {[%clk 0:00:19.2]} 19. Ng5 {[%clk 0:02:26.7]} 19...
Nf6 {[%clk 0:00:14.6]} 20. e5 {[%clk 0:02:22.8]} 20... Nd7 {[%clk 0:00:14.4]}
21. Nxe6 {[%clk 0:02:23.1]} 21... fxe6 {[%clk 0:00:14.5]} 22. h5 {[%clk
0:02:23.7]} 22... gxh5 {[%clk 0:00:11.6]} 23. Bh3 {[%clk 0:02:19.4]} 23... h4
{[%clk 0:00:11.2]} 24. g4 {[%clk 0:02:16.5]} 24... Nf8 {[%clk 0:00:11.4]} 25. f4
{[%clk 0:02:16.5]} 25... Qe7 {[%clk 0:00:09.2]} 26. f5 {[%clk 0:02:16.6]} 26...
exf5 {[%clk 0:00:06.6]} 27. gxf5 {[%clk 0:02:17.5]} 27... Qf7 {[%clk 0:00:07.2]}
28. f6 {[%clk 0:02:16.2]} 28... Qg6+ {[%clk 0:00:07.3]} 29. Kh1 {[%clk 0:02:13]}
29... Bh6 {[%clk 0:00:07.7]} 30. Qf2 {[%clk 0:02:10.6]} 30... Rcd8 {[%clk
0:00:05.9]} 31. Rg1 {[%clk 0:02:10.4]} 31... Bg5 {[%clk 0:00:06.4]} 32. Rxg5
{[%clk 0:02:11]} 32... Qxg5 {[%clk 0:00:05.8]} 33. Rg1 {[%clk 0:02:11.7]} 33...
Qxg1+ {[%clk 0:00:06.3]} 34. Qxg1+ {[%clk 0:02:12.6]} 34... Ng6 {[%clk
0:00:06.4]} 35. e6 {[%clk 0:02:13.2]} 35... Kh8 {[%clk 0:00:03.6]} 36. Qg5
{[%clk 0:02:12.3]} 36... Rg8 {[%clk 0:00:02.7]} 37. f7 {[%clk 0:02:12.2]} 37...
Rg7 {[%clk 0:00:02.5]} 38. Qxd8+ {[%clk 0:02:12.3]} 1-0